bitfinex/quotes_SOLUSD_20241029
["timestamp","ask_amount","ask_price","bid_price","bid_amount"]
[1730230589871,15.6452,179.03,178.94,27.01237853]
[1730230590456,15.6452,179.03,178.95,20.0]
[1730230590660,0.12549,178.99,178.94,20.0]
[1730230591091,24.027864,178.99,178.94,20.0]
[1730230591274,24.027864,178.99,178.92,27.01237853]
[1730230591885,0.25098,178.99,178.94,47.01237853]
[1730230592562,0.12549,178.99,178.94,47.01237853]
[1730230592762,15.6452,179.03,178.94,47.01237853]
[1730230592956,15.6452,179.03,178.96,20.0]
[1730230593180,15.6452,179.03,178.94,20.0]
[1730230593181,15.6452,179.03,178.94,47.01237853]
[1730230593386,15.6452,179.03,178.95,27.01237853]
[1730230593681,15.6452,179.03,178.96,20.0]
[1730230594062,15.6452,179.03,178.94,47.01237853]
[1730230594382,15.6452,179.03,178.96,20.0]
[1730230595062,15.6452,179.03,178.96,47.01237853]
[1730230595575,15.6452,179.03,178.96,20.0]
[1730230595959,5.83060178,178.99,178.95,20.0]
[1730230596897,5.83060178,178.99,178.98,27.01237853]
[1730230597176,22.8342,179.1,178.99,20.0]
[1730230597387,5.82845823,179.05,178.99,20.0]
[1730230597562,5.82845823,179.05,178.99,47.01237853]
[1730230599268,5.82845823,179.05,178.99,74.02475706]
[1730230599465,5.82845823,179.05,178.99,47.01237853]
[1730230600173,5.82845823,179.05,178.99,97.80164106]
[1730230600363,5.82845823,179.05,179.0,0.12549]
[1730230600565,5.82845823,179.05,179.04,47.01237853]
[1730230600765,5.82845823,179.05,179.04,20.0]
[1730230601074,5.82845823,179.05,179.04,47.01237853]
[1730230601788,5.82845823,179.05,179.02,27.01237853]
[1730230602089,5.82845823,179.05,179.04,27.01237853]
[1730230602264,5.82845823,179.05,179.02,47.01237853]
[1730230602603,5.82845823,179.05,179.03,27.01237853]
[1730230602883,5.82845823,179.05,179.01,27.01237853]
[1730230603193,5.82845823,179.05,178.98,20.0]
[1730230603367,24.027864,179.04,178.94,27.01237853]
[1730230603868,24.027864,179.04,178.95,27.01237853]
[1730230604180,24.027864,179.04,178.96,27.01237853]
[1730230604485,0.12549,179.04,178.99,47.01237853]
[1730230604675,0.25098,179.04,178.99,47.01237853]
[1730230604876,0.25098,179.04,178.99,27.01237853]
[1730230605185,0.25098,179.04,178.99,47.01237853]
[1730230605879,0.25098,179.04,178.98,27.01237853]
[1730230606079,0.25098,179.04,178.99,20.0]
[1730230606482,21.36845823,179.05,178.99,20.0]
[1730230606659,5.82845823,179.05,179.01,27.01237853]
[1730230607372,5.82845823,179.05,179.02,20.0]
[1730230607587,5.82845823,179.05,179.04,27.01237853]
[1730230607885,5.82845823,179.05,179.03,27.01237853]
[1730230608971,5.82845823,179.05,179.02,20.0]
[1730230608972,5.82845823,179.05,179.02,27.01237853]
[1730230609169,5.82845823,179.05,179.03,20.0]
[1730230609577,5.82845823,179.05,179.01,20.0]
[1730230609781,0.25098,179.04,178.95,27.01237853]
[1730230609970,0.25098,179.04,178.96,27.01237853]
[1730230610172,0.12549,179.04,178.95,27.01237853]
[1730230610362,5.82919288,179.03,178.97,27.01237853]
[1730230610790,5.82919288,179.03,178.98,27.01237853]
[1730230610973,5.82919288,179.03,178.99,20.0]
[1730230611499,5.82919288,179.03,179.02,27.01237853]
[1730230611786,5.82919288,179.03,179.02,47.01237853]
[1730230611971,5.82919288,179.03,179.02,20.0]
[1730230612170,5.82919288,179.03,179.02,27.01237853]
[1730230612371,5.82919288,179.03,179.02,47.01237853]
[1730230613273,16.6155,179.11,179.03,20.0]
[1730230613468,5.82737915,179.05,179.04,47.01237853]
[1730230613671,16.6155,179.11,179.04,20.0]
[1730230613990,0.12549,179.1,179.05,20.0]
[1730230614301,6.07829348,179.1,179.05,47.01237853]
[1730230614695,6.07829348,179.1,179.03,27.01237853]
[1730230614996,6.07829348,179.1,179.04,20.0]
[1730230615174,6.07829348,179.1,179.04,47.01237853]
[1730230615370,6.07829348,179.1,179.04,20.0]
[1730230615892,6.07829348,179.1,178.99,27.01237853]
[1730230615893,0.25098,179.08,178.99,27.01237853]
[1730230616076,0.25098,179.08,179.0,20.0]
[1730230616274,0.25098,179.08,178.99,20.0]
[1730230616599,5.82731348,179.1,179.02,20.0]
[1730230616767,5.82731348,179.1,179.02,27.01237853]
[1730230617094,0.12549,179.09,179.03,20.0]
[1730230617502,0.12549,179.09,179.01,27.01237853]
[1730230617787,0.25098,179.09,179.02,20.0]
[1730230618491,0.25098,179.09,179.03,20.0]
[1730230618788,0.25098,179.09,178.98,27.01237853]
[1730230618994,24.027864,179.09,178.99,20.0]
[1730230619192,29.611664,179.09,178.99,20.0]
[1730230619490,24.027864,179.09,178.94,27.01237853]
[1730230619693,29.811864,179.09,178.95,27.01237853]
[1730230620388,29.811864,179.09,178.93,6.3129]
[1730230620389,0.12549,179.08,178.94,27.01237853]
[1730230620703,0.12549,179.04,178.92,27.01237853]
[1730230620872,39.288764,179.04,178.89,33.45957853]
[1730230621073,39.188764,179.04,178.93,27.01237853]
[1730230621402,15.41188,179.04,178.95,27.01237853]
[1730230621772,15.41188,179.04,178.96,27.01237853]
[1730230621973,15.41188,179.04,178.96,20.0]
[1730230622188,15.41188,179.04,178.97,27.01237853]
[1730230622589,15.41188,179.04,178.96,27.01237853]
[1730230622785,15.41188,179.04,178.97,20.0]
[1730230623183,15.41188,179.04,178.95,20.0]
[1730230623497,0.25098,179.02,178.91,27.01237853]
[1730230624695,0.12549,179.0,178.91,27.01237853]
[1730230624997,0.25098,179.0,178.94,27.01237853]
[1730230625182,5.8308123,179.01,178.98,20.0]
[1730230625389,5.8308123,179.01,178.96,20.0]
[1730230626200,5.8308123,179.01,178.97,20.0]
[1730230626497,0.25098,179.0,178.94,27.01237853]
[1730230626697,0.25098,179.0,178.93,20.0]
[1730230626897,0.25098,179.0,178.9,47.01237853]
[1730230627100,0.25098,179.0,178.88,27.01237853]
[1730230627101,24.027864,179.0,178.88,27.01237853]
[1730230627397,24.027864,179.0,178.83,27.01237853]
[1730230627398,24.027864,178.96,178.83,27.01237853]
[1730230627603,24.027864,178.96,178.84,27.01237853]
[1730230627799,24.027864,178.96,178.87,27.01237853]
[1730230628692,24.027864,178.96,178.88,27.01237853]
[1730230629095,24.027864,178.96,178.89,20.0]
[1730230629483,24.027864,178.96,178.84,27.01237853]
[1730230630199,24.027864,178.96,178.86,27.01237853]
[1730230630504,16.4124,178.97,178.9,27.01237853]
[1730230630701,16.4124,178.97,178.93,27.01237853]
[1730230630904,5.8308123,179.01,178.93,20.0]
[1730230631089,5.8308123,179.01,178.9,27.01237853]
[1730230631406,0.12549,179.0,178.9,47.01237853]
[1730230632004,24.027864,179.0,178.92,47.01237853]
[1730230632322,24.027864,179.0,178.93,20.0]
[1730230632491,5.8308123,179.01,178.95,47.01237853]
[1730230632812,5.8308123,179.01,178.96,20.0]
[1730230633000,5.8308123,179.01,178.96,47.01237853]
[1730230633912,5.8308123,179.01,178.97,27.01237853]
[1730230634091,5.8308123,179.01,178.98,20.0]
[1730230634710,5.8308123,179.01,178.96,20.0]
[1730230635511,0.25098,179.01,178.95,20.0]
[1730230635714,0.25098,179.01,178.94,20.0]
[1730230636012,24.027864,179.01,178.88,27.01237853]
[1730230636189,24.027864,179.01,178.89,27.01237853]
[1730230636398,24.027864,179.01,178.9,27.01237853]
[1730230638100,24.027864,179.01,178.91,20.0]
[1730230638294,24.027864,179.01,178.9,20.0]
[1730230638490,24.027864,179.01,178.92,20.0]
[1730230640019,24.027864,179.01,178.94,20.0]
[1730230640516,24.027864,179.01,178.94,27.01237853]
[1730230640712,24.027864,179.01,178.94,20.0]
[1730230641399,24.027864,179.01,178.91,20.0]
[1730230641997,24.127864,179.01,178.9,20.0]
[1730230642205,24.027864,179.01,178.9,27.01237853]
[1730230642409,24.027864,178.99,178.91,20.0]
[1730230642625,24.027864,178.99,178.91,47.01237853]
[1730230644120,24.027864,178.99,178.9,27.01237853]
[1730230644702,24.027864,178.99,178.91,20.0]
[1730230645005,0.45098,178.99,178.86,27.01237853]
[1730230645202,24.227864,178.99,178.86,27.01237853]
[1730230645428,24.227864,178.99,178.85,27.01237853]
[1730230645921,0.22549,178.97,178.84,33.01867853]
[1730230646133,0.32549,178.95,178.81,27.01237853]
[1730230646295,24.227864,178.93,178.79,6.2768]
[1730230646496,0.25098,178.9,178.77,27.01237853]
[1730230646698,24.027864,178.88,178.77,27.01237853]
[1730230646895,24.027864,178.88,178.79,27.01237853]
[1730230647110,24.027864,178.88,178.78,27.01237853]
[1730230647310,24.027864,178.88,178.79,27.01237853]
[1730230647520,0.12549,178.88,178.82,27.01237853]
[1730230647816,0.12549,178.88,178.8,27.01237853]
[1730230648401,0.12549,178.88,178.79,27.01237853]
[1730230649204,0.12549,178.88,178.79,47.01237853]
[1730230649404,0.12549,178.88,178.81,20.0]
[1730230650327,0.12549,178.88,178.82,20.0]
[1730230650706,0.12549,178.88,178.82,47.01237853]
[1730230650897,0.12549,178.88,178.81,20.0]
[1730230651319,0.12549,178.88,178.81,47.01237853]
[1730230652129,0.12549,178.88,178.81,20.0]
[1730230652321,0.12549,178.88,178.81,47.01237853]
[1730230653029,0.12549,178.88,178.81,20.0]
[1730230653323,0.25098,178.89,178.81,20.0]
[1730230653504,0.12549,178.89,178.81,20.0]
[1730230653835,0.12549,178.89,178.77,47.01237853]
[1730230654125,0.12549,178.89,178.75,6.2768]
[1730230654126,0.12549,178.89,178.78,27.01237853]
[1730230654327,0.12549,178.89,178.79,20.0]
[1730230654824,0.1,178.91,178.81,20.0]
[1730230654825,0.22549,178.91,178.81,20.0]
[1730230655007,0.12549,178.9,178.81,20.0]
[1730230655405,0.12549,178.9,178.82,27.01237853]
[1730230655600,22.2812,178.94,178.83,47.01237853]
[1730230655809,22.2812,178.94,178.86,20.0]
[1730230656223,5.95886565,178.93,178.86,20.0]
[1730230656419,5.95886565,178.93,178.85,20.0]
[1730230656621,5.95886565,178.93,178.86,20.0]
[1730230657014,5.83337565,178.93,178.86,20.0]
[1730230657307,23.902374,178.92,178.86,20.0]
[1730230657521,5.83337565,178.93,178.86,20.0]
[1730230657522,5.83337565,178.93,178.86,47.01237853]
[1730230657827,0.12549,178.92,178.86,47.01237853]
[1730230658018,5.83337565,178.93,178.87,27.01237853]
[1730230658334,5.83337565,178.93,178.91,27.01237853]
[1730230658533,15.2728,179.01,178.91,27.01237853]
[1730230658708,5.83130527,178.96,178.91,27.01237853]
[1730230658914,5.83130527,178.96,178.92,47.01237853]
[1730230659239,5.8311354,178.97,178.92,27.01237853]
[1730230659428,0.12549,178.96,178.92,20.0]
[1730230659610,5.8311354,178.97,178.92,20.0]
[1730230659909,0.25098,178.96,178.9,20.0]
[1730230660109,0.25098,178.96,178.91,20.0]
[1730230660320,0.12549,178.96,178.91,20.0]
[1730230660832,0.12549,178.95,178.89,27.01237853]
[1730230661018,0.12549,178.95,178.9,20.0]
[1730230661414,0.12549,178.95,178.89,20.0]
[1730230661743,0.12549,178.95,178.9,20.0]
[1730230663630,0.12549,178.95,178.84,27.01237853]
[1730230664114,0.12549,178.95,178.85,27.01237853]
[1730230664319,0.12549,178.95,178.86,27.01237853]
[1730230665010,0.12549,178.95,178.87,20.0]
[1730230665716,0.12549,178.95,178.88,20.0]
[1730230666322,0.12549,178.95,178.86,20.0]
[1730230667233,0.12549,178.95,178.87,20.0]
[1730230669717,24.027864,178.93,178.87,20.0]
[1730230669914,24.027864,178.93,178.85,27.01237853]
[1730230670226,24.127864,178.91,178.79,27.01237853]
[1730230670415,24.127864,178.91,178.78,16.88760234]
[1730230671548,24.127864,178.91,178.8,16.88760234]
[1730230671714,24.027864,178.91,178.81,16.88760234]
[1730230671923,24.027864,178.91,178.82,16.88760234]
[1730230672246,24.027864,178.91,178.8,16.88760234]
[1730230672540,24.027864,178.91,178.8,27.01433281]
[1730230672737,24.027864,178.91,178.81,20.0]
[1730230673037,24.127864,178.91,178.81,20.0]
[1730230673241,24.127864,178.91,178.79,27.01433281]
[1730230673439,24.127864,178.91,178.8,20.0]
[1730230673940,24.127864,178.91,178.8,47.01433281]
[1730230674319,24.127864,178.91,178.8,20.0]
[1730230675148,0.12549,178.89,178.79,20.0]
[1730230675835,0.12549,178.89,178.79,27.01433281]
[1730230676039,0.12549,178.89,178.8,20.0]
[1730230677724,0.12549,178.89,178.8,27.01433281]
[1730230677926,0.25098,178.9,178.82,27.01433281]
[1730230678156,0.25098,178.9,178.81,47.01433281]
[1730230678321,0.25098,178.9,178.82,27.01433281]
[1730230678732,21.5005,178.92,178.82,27.01433281]
[1730230678733,0.25098,178.91,178.82,27.01433281]
[1730230679130,0.25098,178.91,178.83,47.01433281]
[1730230679337,21.4005,178.92,178.85,20.0]
[1730230679929,5.83263559,178.91,178.85,20.0]
[1730230680329,5.83263559,178.91,178.85,27.01433281]
[1730230680540,0.25098,178.9,178.84,27.01433281]
[1730230680943,0.25098,178.9,178.85,20.0]
[1730230681155,0.25098,178.9,178.85,47.01433281]
[1730230681454,0.25098,178.9,178.76,0.1]
[1730230681455,24.027864,178.9,178.75,6.88825688]
[1730230681657,24.027864,178.9,178.81,27.01433281]
[1730230681831,24.027864,178.9,178.82,27.01433281]
[1730230682433,0.12549,178.9,178.85,27.01433281]
[1730230682638,5.83263559,178.91,178.88,27.01433281]
[1730230682849,5.83263559,178.91,178.9,27.01433281]
[1730230683049,1.07142378,178.99,178.9,27.01433281]
[1730230683050,0.97142378,178.99,178.9,27.01433281]
[1730230683222,0.97142378,178.99,178.84,6.3303]
[1730230683423,5.83220056,178.94,178.85,43.776884]
[1730230683628,0.12549,178.99,178.93,27.01433281]
[1730230683844,5.83143614,178.97,178.94,27.01433281]
[1730230684250,0.12549,178.96,178.94,27.01433281]
[1730230684848,0.12549,178.96,178.93,27.01433281]
[1730230685154,0.12549,178.96,178.92,27.01433281]
[1730230685344,0.25098,178.96,178.93,27.01433281]
[1730230686044,0.25098,178.96,178.92,27.01433281]
[1730230686422,0.25098,178.96,178.93,20.0]
[1730230687435,0.25098,178.96,178.93,47.01433281]
[1730230687654,0.25098,178.96,178.94,27.01433281]
[1730230688740,0.25098,178.96,178.92,27.01433281]
[1730230688934,24.027864,178.96,178.92,27.01433281]
[1730230689271,0.25098,178.96,178.93,20.0]
[1730230689759,0.25098,178.96,178.93,47.01433281]
[1730230690744,0.25098,178.96,178.93,27.01433281]
[1730230690944,0.25098,178.96,178.94,20.0]
[1730230691153,0.12549,178.96,178.94,20.0]
[1730230691546,0.12549,178.96,178.93,20.0]
[1730230691764,0.12549,178.96,178.92,27.01433281]
[1730230691765,0.25098,178.96,178.92,47.01433281]
[1730230692749,0.25098,178.96,178.93,27.01433281]
[1730230693143,0.25098,178.96,178.94,16.86079562]
[1730230693466,0.25098,178.96,178.93,16.86079562]
[1730230693767,0.25098,178.96,178.94,16.86079562]
[1730230693945,5.83143614,178.97,178.96,20.0]
[1730230694261,16.1845,179.09,178.96,36.86079562]
[1730230694440,5.82860719,179.05,179.01,16.86079562]
[1730230694763,0.12549,179.08,179.01,16.86079562]
[1730230694936,5.82859185,179.05,179.01,16.86079562]
[1730230695141,0.12549,179.08,179.01,16.86079562]
[1730230695447,0.12549,179.04,179.01,16.86079562]
[1730230696031,0.25098,179.04,179.01,16.86079562]
[1730230696462,0.12549,179.04,179.03,16.86079562]
[1730230696659,5.82866201,179.05,179.03,16.86079562]
[1730230696867,5.82866201,179.05,179.04,16.86079562]
[1730230697151,5.82866201,179.05,179.04,36.86079562]
[1730230698730,0.12549,179.04,179.01,16.86079562]
[1730230699933,0.25098,179.04,179.0,16.86079562]
[1730230700248,0.25098,179.04,179.02,16.86079562]
[1730230700439,0.25098,179.04,179.01,16.86079562]
[1730230701865,0.25098,179.04,178.99,16.86079562]
[1730230702066,0.25098,179.04,178.99,20.0]
[1730230702356,0.25098,179.04,178.99,36.86079562]
[1730230702559,24.027864,179.04,178.97,16.86079562]
[1730230702733,24.027864,179.04,178.98,16.86079562]
[1730230703166,24.027864,179.04,178.99,16.86079562]
[1730230703467,24.027864,179.04,178.98,16.86079562]
[1730230703666,0.25098,179.04,178.98,16.86079562]
[1730230704845,0.25098,179.04,178.99,16.86079562]
[1730230705361,5.82866201,179.05,179.03,16.86079562]
[1730230705562,5.82866201,179.05,179.04,16.86079562]
[1730230706567,5.82866201,179.05,179.03,16.86079562]
[1730230706866,5.82866201,179.05,179.02,16.86079562]
[1730230707052,0.12549,179.04,179.0,16.86079562]
[1730230707660,0.12549,179.04,178.99,16.86079562]
[1730230707862,5.82927019,179.03,178.99,36.86079562]
[1730230708280,5.82927019,179.03,179.0,16.86079562]
[1730230708773,5.82927019,179.03,179.01,16.86079562]
[1730230708978,5.82927019,179.03,179.02,16.86079562]
[1730230709152,0.12549,179.08,179.02,16.86079562]
[1730230709352,5.82847484,179.05,179.03,16.86079562]
[1730230709679,24.027864,179.08,178.93,20.0]
[1730230709680,24.027864,179.08,179.02,16.86079562]
[1730230709887,5.82843887,179.05,179.03,16.86079562]
[1730230710175,16.1845,179.09,179.03,16.86079562]
[1730230710364,5.82830781,179.05,179.03,16.86079562]
[1730230710758,0.12549,179.08,179.03,16.86079562]
[1730230710959,5.82828048,179.05,179.03,16.86079562]
[1730230711170,16.1845,179.09,179.04,16.86079562]
[1730230711372,6.551,179.11,179.01,16.86079562]
[1730230711373,16.0775,179.13,179.07,16.86079562]
[1730230711681,5.95319129,179.12,179.07,16.86079562]
[1730230712278,5.95319129,179.12,179.05,16.86079562]
[1730230712582,5.95319129,179.12,179.04,16.86079562]
[1730230712583,0.12549,179.1,179.04,16.86079562]
[1730230713661,0.12549,179.1,179.02,16.86079562]
[1730230713981,0.12549,179.1,179.0,20.0]
[1730230714163,5.70899,179.1,178.97,16.86079562]
[1730230714476,0.12549,179.08,178.99,26.9640103]
[1730230714976,0.12549,179.08,178.97,26.9640103]
[1730230715281,0.12549,179.08,178.98,26.9640103]
[1730230715978,0.12549,179.08,178.99,26.9640103]
[1730230716193,0.12549,179.08,179.0,26.9640103]
[1730230716476,0.12549,179.08,178.99,26.9640103]
[1730230716875,0.12549,179.08,179.0,26.9640103]
[1730230717267,0.12549,179.08,178.99,26.9640103]
[1730230717669,0.12549,179.08,179.0,26.9640103]
[1730230717865,0.12549,179.06,179.0,26.9640103]
[1730230718269,0.12549,179.06,179.01,26.9640103]
[1730230718473,0.25098,179.07,179.0,26.9640103]
[1730230719766,0.25098,179.07,179.02,26.9640103]
[1730230719970,0.97073393,179.08,179.05,26.9640103]
[1730230720182,5.82770129,179.12,179.05,26.9640103]
[1730230720484,0.12549,179.11,179.05,26.9640103]
[1730230720862,0.12549,179.11,179.04,26.9640103]
[1730230721168,0.12549,179.11,178.97,20.0]
[1730230721169,0.25098,179.11,178.97,20.0]
[1730230721372,24.127864,179.11,178.99,26.9640103]
[1730230721675,24.127864,179.11,179.0,26.9640103]
[1730230721978,0.12549,179.09,179.0,26.9640103]
[1730230722177,24.027864,179.09,179.01,26.9640103]
[1730230722567,24.027864,179.09,179.02,26.9640103]
[1730230723184,24.027864,179.09,179.01,26.9640103]
[1730230723692,24.027864,179.09,178.96,6.1076]
[1730230723693,24.027864,179.09,179.0,26.9640103]
[1730230723983,24.027864,179.09,178.99,20.0]
[1730230725577,24.027864,179.09,179.0,26.9640103]
[1730230725763,24.027864,179.09,178.99,26.9640103]
[1730230726985,0.22549,179.08,178.97,20.0]
[1730230727187,0.22549,179.08,178.96,20.0]
[1730230727393,0.25098,179.05,178.96,20.0]
[1730230727606,15.2246,179.04,178.93,26.9640103]
[1730230727768,24.027864,179.03,178.92,33.5475103]
[1730230728270,24.027864,179.03,178.93,26.9640103]
[1730230729390,24.027864,179.03,178.91,26.9640103]
[1730230729579,24.027864,179.03,178.92,20.0]
[1730230729972,24.027864,179.03,178.92,26.9640103]
[1730230730491,24.027864,179.03,178.93,26.9640103]
[1730230731588,24.027864,179.03,178.88,6.5835]
[1730230731589,24.027864,179.03,178.92,26.9640103]
[1730230732090,29.713464,179.03,178.93,20.0]
[1730230732275,29.613464,179.03,178.93,20.0]
[1730230732475,24.027864,179.01,178.93,20.0]
[1730230734076,24.027864,179.01,178.91,26.9640103]
[1730230734299,24.027864,179.01,178.92,20.0]
[1730230734899,0.12549,178.99,178.89,16.86551041]
[1730230735096,0.12549,178.99,178.88,16.86551041]
[1730230735277,0.25098,178.98,178.89,16.86551041]
[1730230736074,0.25098,178.98,178.9,16.86551041]
[1730230737203,0.25098,178.98,178.9,20.0]
[1730230738198,0.25098,178.98,178.9,16.86551041]
[1730230739596,0.25098,178.98,178.85,20.0]
[1730230739597,0.25098,178.98,178.91,16.86551041]
[1730230740575,1.22221016,178.98,178.93,16.86551041]
[1730230740996,0.25098,178.98,178.93,16.86551041]
[1730230741202,0.25098,178.98,178.94,16.86551041]
[1730230741388,0.25098,178.98,178.93,16.86551041]
[1730230741580,0.25098,178.98,178.85,20.0]
[1730230741581,0.25098,178.98,178.94,16.86551041]
[1730230741779,0.25098,178.98,178.93,16.86551041]
[1730230742580,0.12549,178.99,178.95,16.86551041]
[1730230742782,5.83112832,178.97,178.95,16.86551041]
[1730230742984,1.09654919,179.03,178.95,16.86551041]
[1730230743184,5.8308532,178.98,178.95,16.86551041]
[1730230743399,1.09654919,179.03,178.95,16.86551041]
[1730230743706,0.97105919,179.03,178.96,16.86551041]
[1730230743996,0.12549,179.01,178.96,16.86551041]
[1730230744403,5.83064212,179.02,178.96,16.86551041]
[1730230744708,5.83064212,179.02,178.93,6.4746]
[1730230744709,0.12549,179.01,178.97,16.86551041]
[1730230744904,5.83064212,179.02,178.98,16.86551041]
[1730230745576,5.83064212,179.02,178.99,16.86551041]
[1730230745805,5.83064212,179.02,178.98,16.86551041]
[1730230746103,5.83064212,179.02,178.99,16.86551041]
[1730230746805,5.83064212,179.02,178.98,16.86551041]
[1730230748976,24.027864,179.01,178.96,20.0]
[1730230749505,0.12549,179.01,178.97,16.86551041]
[1730230749683,5.83064212,179.02,178.99,16.86551041]
[1730230750197,5.83064212,179.02,179.0,16.86551041]
[1730230750508,5.83064212,179.02,178.99,16.86551041]
[1730230750807,0.12549,179.01,178.96,16.86551041]
[1730230750988,23.902374,179.01,178.94,16.86551041]
[1730230751187,23.902374,179.01,178.95,16.86551041]
[1730230751595,23.902374,179.01,178.93,6.4746]
[1730230751596,0.12549,179.01,178.96,16.86551041]
[1730230751795,0.12549,179.01,178.97,16.86551041]
[1730230752307,5.83064212,179.02,178.99,16.86551041]
[1730230752797,5.83064212,179.02,178.98,36.86551041]
[1730230753402,5.83064212,179.02,178.98,20.0]
[1730230753906,0.12549,179.01,178.97,16.86551041]
[1730230754204,5.83064212,179.02,178.93,6.4746]
[1730230754205,5.83064212,179.02,178.98,16.86551041]
[1730230754919,5.83064212,179.02,178.99,16.86551041]
[1730230755402,5.83064212,179.02,178.98,16.86551041]
[1730230756890,5.83064212,179.02,178.96,16.86551041]
[1730230757092,5.83064212,179.02,178.97,20.0]
[1730230758083,0.12549,179.01,178.97,20.0]
[1730230758501,0.12549,179.01,178.96,20.0]
[1730230758708,5.83012752,179.0,178.96,20.0]
[1730230759811,5.83012752,179.0,178.96,36.86551041]
[1730230759997,5.83012752,179.0,178.97,16.86551041]
[1730230760686,5.83012752,179.0,178.98,16.86551041]
[1730230760990,0.12549,179.07,178.98,16.86551041]
[1730230761307,5.82950155,179.02,178.98,16.86551041]
[1730230761502,24.027864,179.07,178.98,16.86551041]
[1730230761806,5.82953154,179.02,178.97,16.86551041]
[1730230762004,24.027864,179.07,178.97,16.86551041]
[1730230762411,5.8295512,179.01,178.97,16.86551041]
[1730230762612,24.027864,179.07,178.97,16.86551041]
[1730230762793,5.82962268,179.01,178.97,16.86551041]
[1730230762986,24.027864,179.07,178.97,16.86551041]
[1730230763686,24.027864,179.07,178.98,16.86551041]
[1730230764009,23.902374,179.05,178.98,16.86551041]
[1730230764398,0.12549,179.04,178.98,16.86551041]
[1730230765313,0.12549,179.04,178.99,16.86551041]
[1730230765605,0.12549,179.04,178.98,16.86551041]
[1730230768211,0.12549,179.05,179.01,16.86551041]
[1730230768417,0.12549,179.05,179.0,16.86551041]
[1730230768908,0.25098,179.05,179.0,16.86551041]
[1730230769521,0.12549,179.05,179.0,16.86551041]
[1730230771092,0.07012212,179.05,179.0,16.86551041]
[1730230771918,23.97249612,179.05,178.97,16.86551041]
[1730230772115,23.97249612,179.05,178.98,16.86551041]
[1730230772299,23.97249612,179.05,178.99,16.86551041]
[1730230772621,0.07012212,179.05,179.0,30.78446113]
[1730230773615,0.07012212,179.05,179.0,20.0]
[1730230774222,5.82899209,179.04,179.0,20.0]
[1730230775011,5.82899209,179.04,179.0,10.78446113]
[1730230776220,24.027864,179.03,178.93,6.4746]
[1730230776390,24.027864,179.03,178.95,10.78446113]
[1730230776590,24.027864,179.03,178.96,10.78446113]
[1730230776995,24.027864,179.03,178.95,10.78446113]
[1730230777795,24.027864,179.03,178.96,20.0]
[1730230779136,24.027864,179.03,178.86,0.1]
[1730230779137,24.027864,178.99,178.88,21.4333]
[1730230779423,24.027864,178.99,178.85,16.74305099]
[1730230779602,24.127864,178.99,178.85,5.95858986]
[1730230779804,24.127864,178.99,178.84,26.18696113]
[1730230780008,0.1,178.98,178.84,26.18696113]
[1730230780401,24.127864,178.99,178.85,16.87575781]
[1730230780617,0.1,178.98,178.85,16.87575781]
[1730230780835,0.1,178.98,178.8,5.95858986]
[1730230780836,23.902374,178.94,178.8,5.95858986]
[1730230781124,0.2,178.98,178.76,12.91881365]
[1730230781125,24.027864,178.88,178.76,22.90655781]
[1730230781323,24.027864,178.88,178.77,16.87575781]
[1730230781621,24.027864,178.88,178.79,16.87575781]
[1730230781998,24.027864,178.88,178.78,16.87575781]
[1730230782403,24.027864,178.88,178.79,16.87575781]
[1730230782626,24.027864,178.88,178.82,20.0]
[1730230783002,0.25098,178.88,178.83,16.87575781]
[1730230783315,0.25098,178.88,178.82,16.87575781]
[1730230783524,0.25098,178.88,178.78,20.0]
[1730230783525,24.027864,178.88,178.78,20.0]
[1730230783729,29.618164,178.88,178.72,16.87575781]
[1730230784030,0.12549,178.85,178.71,22.99805781]
[1730230784515,23.902374,178.83,178.74,16.87575781]
[1730230784706,0.12549,178.82,178.74,16.87575781]
[1730230784911,0.12549,178.82,178.73,16.87575781]
[1730230785217,0.12549,178.82,178.74,20.0]
[1730230785822,0.12549,178.82,178.74,36.87575781]
[1730230786233,0.12549,178.8,178.7,20.0]
[1730230786403,0.12549,178.78,178.66,16.87575781]